Cogmind - Beta 10.2 @@@ ROGUE MODE // 2020.10.31 @ 21:00:38 // Halloween2020/ForbiddenLore Player: cd4337 Result: Destroyed by G-34 Mercenary with Small Laser Performance ------------- Evolutions (1) 500 Regions Visited (3) 600 Robots Destroyed (18) 90 Value Destroyed (477) 477 Prototype IDs (0) 0 Alien Tech Used (0) 0 Bonus (0) 0 TOTAL SCORE: 1667 Bonus ------- None Cogmind --------- Core Integrity 0/400 Matter 300/300 Energy 100/100 System Corruption 17% Temperature Cool (6) Movement Core (700) Ox13 Location -9/Mines Parts ------- > --- POWER (1) -------- (None) > --- PROPULSION (4) --- (None) > --- UTILITY (2) ------ Medium Storage Unit High-capacity Storage Unit > --- WEAPON (2) ------- (None) > --- INVENTORY (16) --- Light Ion Engine Light Ion Engine Aluminum Leg Small Storage Unit Peak State ------------ > --- POWER ------------ Improved Ion Engine > --- PROPULSION ------- Aluminum Leg Aluminum Leg Aluminum Leg Aluminum Leg > --- UTILITY ---------- Medium Storage Unit High-capacity Storage Unit > --- WEAPON ----------- Beam Rifle Light Assault Rifle > --- INVENTORY -------- Light Ion Engine Light Ion Engine Aluminum Leg Compact Wheel Compact Wheel Small Storage Unit Medium Laser [Rating: 11] Favorites ----------- Power Light Ion Engine Engine Light Ion Engine Propulsion Aluminum Leg Leg Aluminum Leg Wheel Compact Wheel Utility Medium Storage Unit Storage Medium Storage Unit Weapon Light Assault Rifle Energy Gun Small Laser Ballistic Gun Light Assault Rifle Launcher Grenade Launcher Special Weapon Mining Laser Special Melee Weapon Datajack Build | -11 -10 -9 -9 ------- Run | Scr Mat Mat Min Slots Evolved 2 | . . 2 . Power . | . . . . Propulsion 2 | . . 2 . Utility . | . . . . Weapon . | . . . . Parts Attached 27 | 6 5 14 2 Power 4 | 1 1 2 . Engine 4 | 1 1 2 . Core . | . . . . Reactor . | . . . . Propulsion 9 | 2 . 5 2 Treads . | . . . . Leg 7 | 2 . 5 . Wheel 2 | . . . 2 Hover . | . . . . Flight . | . . . . Utility 3 | 1 1 1 . Device . | . . . . Storage 3 | 1 1 1 . Processor . | . . . . Hackware . | . . . . Protection . | . . . . Artifact . | . . . . Weapon 11 | 2 3 6 . Energy Gun 5 | 1 1 3 . Energy Cannon . | . . . . Ballistic Gun 2 | 1 . 1 . Ballistic Cannon . | . . . . Launcher 1 | . 1 . . Special Weapon 1 | . . 1 . Impact Weapon . | . . . . Slashing Weapon . | . . . . Piercing Weapon . | . . . . Special Melee Weapon 2 | . 1 1 . Unidentified Prototypes . | . . . . Parts Lost 14 | . 1 10 3 Power 1 | . . . 1 Propulsion 6 | . . 4 2 Utility . | . . . . Weapon 7 | . 1 6 . Highest Loss Streak 9 | . 1 9 3 Average Slot Usage (%) 77 | . 90 83 51 Engine 11 | . 14 11 9 Leg 22 | . 28 31 . Wheel 5 | . . . 19 Storage 21 | . 19 22 22 Energy Gun 4 | . 2 8 . Ballistic Gun 8 | . 14 9 . Special Melee Weapon 3 | . 9 . . Naked Turns . | . . . . Heaviest Build 51 | 9 20 51 47 Greatest Support 40 | 20 20 40 32 Greatest Overweight (x) 15 | 1 . 15 13 Average Overweight (x) . | . . . 1 Largest Inventory Capacity 16 | 6 10 16 16 Average Capacity 11 | 5 7 12 16 Most Carried 10 | 6 6 10 5 Average Carried 5 | 3 5 6 4 Final Capacity 16 | 6 10 16 16 Final Carried 6 | 6 6 6 4 Class Distribution -------------------- 88% | Mutant 11% | Scavenger-Mutant Dominant Class ---------------- Mutant | -10/Materials Mutant | -9/Materials Mutant | -9/Mines Resources | -11 -10 -9 -9 ----------- Run | Scr Mat Mat Min Matter Collected 522 | 116 65 284 57 Remotely . | . . . . Salvage Created 526 | . 116 410 . Parts 35 | . 16 19 . Haulers Intercepted . | . . . . Recyclers Shooed . | . . . . Parts Field Recycled . | . . . . Retrieved Matter . | . . . . Parts Self-Destructed . | . . . . Prevented . | . . . . Kills | -11 -10 -9 -9 ------- Run | Scr Mat Mat Min Combat Hostiles Destroyed 14 | . 6 8 . Guns 8 | . 1 7 . Cannons 1 | . . 1 . AOE 5 | . 5 . . Classes Destroyed 8 | . 5 3 . Worker 1 | . 1 . . Builder 1 | . 1 . . Operator 1 | . 1 . . Watcher 1 | . . 1 . Swarmer 3 | . 3 . . Grunt 7 | . 3 4 . Brawler 1 | . . 1 . Sentry 3 | . . 3 . Best Kill Streak 8 | . 8 3 . Combat Bots Only 6 | . 6 2 . Max Kills in Single Turn 2 | . 2 1 . Gunslinging . | . . . . Exploded 1 | . 1 . . Melee . | . . . . Uniques/NPCs Destroyed . | . . . . Combat | -11 -10 -9 -9 -------- Run | Scr Mat Mat Min Damage Taken 1520 | . 160 920 440 Core 447 | . 41 172 234 Absorbed by Shields . | . . . . Core Remaining (%) 91 | 100 83 . . Volleys Fired 56 | . 14 42 . Largest 2 | . 2 2 . Hottest 100 | . 70 100 . Shots Fired 95 | . 23 72 . Gun 84 | . 16 68 . Cannon . | . . . . Launcher 7 | . 7 . . Special 4 | . . 4 . Kinetic 50 | . 14 36 . Thermal 38 | . 2 36 . Explosive 7 | . 7 . . Electromagnetic . | . . . . Robot Hit Streak 17 | . 8 17 . Robot Miss Streak 8 | . 8 3 . Penetration Max . | . . . . Secondary Targets . | . . . . Shots Hit Robots 66 | . 10 56 . Core Hits 38 | . 14 21 3 Critical Hits 1 | . . 1 . Critical Kills . | . . . . Critical Parts Destroyed 1 | . . 1 . Melee Attacks 2 | . . 2 . Impact . | . . . . Slashing . | . . . . Piercing . | . . . . Sneak Attacks . | . . . . Combat Hostiles . | . . . . Follow-up Attacks . | . . . . Damage Inflicted 1185 | . 569 607 9 Guns 570 | . 59 511 . Cannons . | . . . . Explosions 510 | . 510 . . Melee . | . . . . Ramming 9 | . . . 9 Kinetic 252 | . 35 217 . Thermal 414 | . 24 390 . Explosive 510 | . 510 . . Electromagnetic . | . . . . Impact . | . . . . Slashing . | . . . . Piercing . | . . . . Highest Corruption 17 | . . 14 17 Average Corruption 14 | . . 12 14 Corruption Purged . | . . . . Effects 11 | . . 4 7 Message Errors 1 | . . 1 . Matter Fused 2 | . . . 2 Heat Flow Errors 3 | . . . 3 Energy Discharges 1 | . . . 1 Data Loss (major) 2 | . . 1 1 Misdirections 1 | . . 1 . Targeting Errors 1 | . . 1 . Overload Shots . | . . . . Overflow Damage 41 | . 41 . . Projectiles . | . . . . Explosions 41 | . 41 . . Melee . | . . . . Knockbacks . | . . . . Impact . | . . . . Kinetic . | . . . . Secondary . | . . . . Self-Inflicted Damage 54 | . 51 . 3 Shots 3 | . 3 . . Rammed 5 | . . 1 4 Targets Rammed 5 | . . 1 4 Kicked . | . . . . Crushed . | . . . . Highest Temperature 207 | . 32 126 207 Average Temperature 36 | . 12 33 84 Received Heat Transfer 450 | . 36 363 51 Siege Activations . | . . . . Robots Corrupted . | . . . . Combat Hostiles . | . . . . Parts Fried . | . . . . Impact Corruptions . | . . . . Robots Melted . | . . . . Combat Hostiles . | . . . . Parts Melted 1 | . . 1 . Heat Transferred 1007 | . 62 945 . Parts Sabotaged . | . . . . Parts Stolen . | . . . . Parts Stripped . | . . . . Power Chain Reactions . | . . . . Missiles Intercepted . | . . . . Alert | -11 -10 -9 -9 ------- Run | Scr Mat Mat Min Peak Influence 322 | . 191 322 109 Initial 109 | . . 80 109 Average 127 | . 52 211 105 Maximum Alert Level 1 | . . 1 . Low Security (%) 74 | 100 100 38 100 Level 1 25 | . . 61 . Level 2 . | . . . . Level 3 . | . . . . Level 4 . | . . . . Level 5 . | . . . . High Security . | . . . . Max Security . | . . . . Squads Dispatched 5 | . 3 2 . Investigation 1 | . 1 . . Extermination . | . . . . Reinforcement 4 | . 2 2 . Assault . | . . . . Garrison . | . . . . Intercept . | . . . . Construction Impeded . | . . . . Haulers Reinforced . | . . . . Stealth | -11 -10 -9 -9 --------- Run | Scr Mat Mat Min Distress Signals 1 | . . 1 . Communications Jammed . | . . . . Distress Signals . | . . . . Times Spotted 31 | . 8 17 6 Peak Tracking Total 7 | . 7 5 6 Tactical Retreats . | . . . . Traps | -11 -10 -9 -9 ------- Run | Scr Mat Mat Min Traps Triggered 3 | . 1 2 . Indirectly . | . . . . Trap Hack Attempts . | . . . . Triggered . | . . . . Disarmed . | . . . . Reprogrammed . | . . . . Reused . | . . . . Traps Extracted . | . . . . Installed . | . . . . Triggered . | . . . . Machines | -11 -10 -9 -9 ---------- Run | Scr Mat Mat Min Machines Disabled . | . . . . Max in Single Turn . | . . . . Machines Sabotaged . | . . . . Garrisons Compromised . | . . . . Overloaded Fab Kills . | . . . . Fab Network Shutdowns . | . . . . Hacking | -11 -10 -9 -9 --------- Run | Scr Mat Mat Min Machines Accessed 1 | . 1 . . Terminals 1 | . 1 . . Fabricators . | . . . . Repair Stations . | . . . . Recycling Units . | . . . . Scanalyzers . | . . . . Garrison Access . | . . . . Total Hacks 5 | . 5 . . Successful 3 | . 3 . . Failed 2 | . 2 . . Catastrophic . | . . . . Database Lockouts . | . . . . Manual . | . . . . Terminals 5 | . 5 . . Fabricators . | . . . . Repair Stations . | . . . . Recycling Units . | . . . . Scanalyzers . | . . . . Garrison Access . | . . . . Terminal Hacks 3 | . 3 . . Record 1 | . 1 . . Emergency Access Points 1 | . 1 . . Alert Level 1 | . 1 . . Fabricator Hacks . | . . . . Repair Station Hacks . | . . . . Recycling Unit Hacks . | . . . . Scanalyzer . | . . . . Garrison Access Hacks . | . . . . Unauthorized Hacks . | . . . . Terminals . | . . . . Fabricators . | . . . . Repair Stations . | . . . . Recycling Units . | . . . . Scanalyzers . | . . . . Garrison Access . | . . . . Data Cores Recovered . | . . . . Used . | . . . . Hacking Detections . | . . . . Full Trace Events . | . . . . Feedback Events . | . . . . Feedback Blocked . | . . . . Robot Schematics Acquired . | . . . . Robots Built . | . . . . Matter . | . . . . Time . | . . . . Total Robot Build Rating . | . . . . Part Schematics Acquired . | . . . . Parts Built . | . . . . Matter . | . . . . Time . | . . . . Total Part Build Rating . | . . . . Parts Repaired . | . . . . Time . | . . . . Parts Recycled . | . . . . Recycled Matter . | . . . . Retrieved Matter . | . . . . Retrieved Components . | . . . . Parts Scanalyzed . | . . . . Part Schematics Acquired . | . . . . Parts Damaged . | . . . . Bothacking | -11 -10 -9 -9 ------------ Run | Scr Mat Mat Min Used RIF Installer . | . . . . Robots Hacked 1 | . . 1 . Non-combat . | . . . . Combat 1 | . . 1 . Robot Hacks Applied 2 | . . 2 . parse_system 2 | . . 2 . Relay Couplers Released . | . . . . Robots Rewired . | . . . . Allies Hacked . | . . . . Hacks Repelled . | . . . . Allies | -11 -10 -9 -9 -------- Run | Scr Mat Mat Min Total Allies . | . . . . Largest Group . | . . . . Highest-Rated Group . | . . . . Highest-Rated Ally . | . . . . Total Orders . | . . . . Ally Attacks . | . . . . Total Damage . | . . . . Kills . | . . . . Allies Corrupted . | . . . . Allies Melted . | . . . . Intel | -11 -10 -9 -9 ------- Run | Scr Mat Mat Min Robot Analysis Total . | . . . . Derelict Logs Recovered 1 | . . . 1 Drone Launches . | . . . . Drone Recoveries . | . . . . Exploration | -11 -10 -9 -9 ------------- Run | Scr Mat Mat Min Turns Passed 894 | 70 239 375 210 Spaces Moved 545 | 56 161 153 175 Core 33 | 24 . 7 2 Treads . | . . . . Legs 339 | 32 161 146 . Wheels 173 | . . . 173 Hover . | . . . . Flight . | . . . . Fastest Speed 50 | 50 120 120 110 Average Speed 121 | 95 120 137 117 Slowest Speed 800 | 120 120 800 700 Overloaded Moves . | . . . . Propulsion Burnouts . | . . . . Robots Hopped . | . . . . Cave-ins Triggered . | . . . . Exploration Rate (%) 22 | 3 29 18 41 Regions Visited 3 Branch Regions 1 Pre-discovered Areas . | . . . . Known Exits Taken . | . . . . Unknown Exits Taken 3 | 1 1 1 . Scrap Searched . | . . . . Spaces Dug . | . . . . Terrain Destroyed 38 | . 38 . . Melee . | . . . . Projectile . | . . . . AOE 38 | . 38 . . Terrain Rammed . | . . . . Walls Destroyed . | . . . . Machines Disabled . | . . . . Actions | -11 -10 -9 -9 --------- Run | Scr Mat Mat Min Total 679 | 71 186 241 181 Wait 19 | . . 19 . Move 543 | 55 160 153 175 Hop . | . . . . Pick Up 24 | 10 4 10 . Fast Attach 3 | 2 1 . . Attach 18 | 4 1 11 2 Detach 1 | . . 1 . Swap 6 | . 3 3 . Drop 3 | . 3 . . Fire 56 | . 14 42 . Melee 2 | . . 2 . Ram 4 | . . . 4 Kick . | . . . . Crush . | . . . . Escape Stasis . | . . . . Rewire . | . . . . Trap . | . . . . Miscellaneous . | . . . . Route ------- -11/Scrapyard -10/Materials -9/Materials -9/Mines History --------- Turn | Location | Event 4 | -11/Scrapyard | Discovered new exit (range 14) 71 | -11/Scrapyard | Entered Materials 209 | -10/Materials | Discovered new exit (range 10) 310 | -10/Materials | Entered another Materials area 310 | -9/Materials | Evolved 2 slots: Propulsion x2 320 | -9/Materials | Build established: Mutant 536 | -9/Materials | Discovered new exit (range 12) 650 | -9/Materials | System corruption reached 10% 685 | -9/Materials | Entered Mines 707 | -9/Mines | Lost 9 parts (4n5w) 739 | -9/Mines | Learned Materials emergency access door positions 866 | -9/Mines | Core integrity fell below 50% 885 | -9/Mines | Core integrity fell below 20% 895 | -9/Mines | Destroyed by G-34 Mercenary with Small Laser Last Messages --------------- 00849_ K-01 Serf collects debris. 00854_ System corrupted: Matter fused (-9). 00855_ A derelict emerges from the shadows. 00863_ Slammed into S-10 Pest. 00863_ Destabilizing: System corrupted (+1). 00865_ Slammed into S-10 Pest. 00865_ Destabilizing: Core damaged (-20). 00865_ Imp. Ion Engine destroyed. 00866_ Slammed into S-10 Pest. 00867_ Destabilizing: System corrupted (+2). 00867_ Com. Wheel destroyed. 00868_ Acquired 57 matter. 00870_ System corrupted: Heat flow error (+164). 00873_ S-10 Pest destroyed. 00873_ R-06 Scavenger collects Beamcaster. 00883_ Com. Wheel destroyed. 00885_ System corrupted: Substantial component data lost. 00891_ K-01 Serf collects debris. 00894_ S-10 Pest destroyed. 00895_ K-01 Serf collects debris. Map ----- +----------------------------------------------------+ | ##?????# #????# #??? | | ####### #????# """ #??? | | ## ### #????# """ #??? | | ####### ## ### #????# """ #??? | | ??????# #### #?## #????# #??? | | ??????# #??## #### ##????#######??? | | ??????# ##???# ## #??????????????? | | ?????## #????## #??????????????? | | ???### #?????### ##??????????????? | | ???# #???????## ###???????????????? | | ???## ##???????#######?????????????????? | | ????## ##????????#####?????????????????? | | ?????# #???????## ##????????????????? | | ?????# #???????# #????????????????? | | ?????# #??###### ##??????? ??????? | | ?????## #?## #?????? ?????? | | ??????#### ### #????? #?????? | | ?????????# #???? #??????? | | ?????????# ## #??? #???????? | | ?????????#$ ## % k g ##?# ##??????? | | ?????????# g ## ##?????? | | ???? %* ### s #?????? | | ??* ?## ###[% #?????? | | ?[ ### ??#####?# s #??????? | | ??????## ????????## #???????? | | ???????## ????????###@ #######???????? | | ????????## ??????????## #?????????????? | | ?????????## ????????????# #?????????????? | | ???????????# ????????????? #????????????? | | ???????????? ?????????????? #????????????? | | ???????????? ??????????????? ???????????? | | ???????????? ???????????????? ??????????? | | ?????????????????????????????#####?????????? | | ???????????????????????????????????????????? | | ???????????????????????????????????????????? | | ???????????????????????????????????????????? | | ???????????????????????????????????????????? | | ???????????????????????????????????????????? | | ???????????????????????????????????????????? | | ???????????????????????????????????????????? | | ???????????????????????????????????????????? | | ???????????????????????????????????????????? | | ???????????????????????????????????????????? | | ???????????????????????????????????????????? | | ???????????????????????????????????????????? | | ???????????????????????????????????????????? | | ???????????????????????????????????????????? | | ???????????????????????????????????????????? | | ???????????????????????????????????????????? | | ???????????????????????????????????????????? | +----------------------------------------------------+ Best States ------------- Heat Dissipation 28 Energy Generation 12 Energy Capacity 265 Matter Stores 300 Matter Capacity 300 Sight Range 16 Terrain Scan Density 10 Evasion (%) 50 Item Schematics ----------------- None Robot Schematics ------------------ None Fabricated ------------ Nothing Alien Tech Used ----------------- None Achievements -------------- None Challenges ------------ None Game ------ Seed SeismicMappingSegregator Manual? 0 Play Time 00:11:56 Cumulative 4.9 hours Start 2020.10.31 @ 20:50:02 End 2020.10.31 @ 21:00:38 Sessions 1 Manual Loads 0 Difficulty Rogue Special Mode Halloween2020/ForbiddenLore Game No. 16 Rogue 16 Adventurer 0 Explorer 0 Win Type - Total 0 Types 0/0/0/0/0/0/0/0/0 Lore% 2 Gallery% 11 Achievement% 8 Wizard Run 0 Options --------- ASCII 0 Keyboard 0 Movement Mouse Keybinds 0 Fullscreen 1 Font 18/SmallcapsGlow Map View 76x50 Tactical HUD 1 Map Filters NONE Filters NONE Steam 1 RUN: 9effc67a-41fb-42b6-9e47-72dcfa38447d